fUST/lending_fUST_20250222
["ID","MTS","AMOUNT","RATE_DAILY","PERIOD"]
[354052939,1740208246426,-713.25298366,0.00015339,2]
[354052941,1740208246436,-913.61293793,0.00015342,2]
[354052943,1740208246446,-1338.82,0.00015377,2]
[354052945,1740208246456,-739.71,0.00015377,2]
[354052947,1740208246466,-500.0,0.00015377,2]
[354052949,1740208246476,-600.9,0.00015377,2]
[354052951,1740208246486,-1058.86,0.00015377,2]
[354052953,1740208246497,-744.55,0.00015377,2]
[354052955,1740208246508,-697.64,0.00015377,2]
[354052957,1740208246518,-589.86,0.00015377,2]
[354052959,1740208246529,-556.77,0.00015377,2]
[354052961,1740208246539,-553.37,0.00015377,2]
[354052963,1740208246549,-4857.36,0.00015378,2]
[354052966,1740208246560,-2326.9,0.00015378,2]
[354052968,1740208246570,-616.41,0.00015378,2]
[354052970,1740208246580,-2755.29,0.00015378,2]
[354052972,1740208246589,-151.0,0.000154,2]
[354052974,1740208246598,-1062.3274581,0.00015421,2]
[354052976,1740208246608,-1000.0,0.00015421,2]
[354052978,1740208246617,-1500.0,0.00015422,2]
[354052980,1740208246626,-500.0,0.00015422,2]
[354052982,1740208246635,-713.25298366,0.00015439,2]
[354052984,1740208246645,-1338.82,0.00015459,2]
[354052986,1740208246654,-739.71,0.00015459,2]
[354052988,1740208246663,-500.0,0.00015459,2]
[354052990,1740208246673,-600.9,0.00015459,2]
[354052992,1740208246683,-1058.86,0.00015459,2]
[354052994,1740208246692,-744.55,0.00015459,2]
[354052996,1740208246701,-697.64,0.00015459,2]
[354052998,1740208246711,-556.77,0.00015459,2]
[354053000,1740208246721,-553.37,0.00015459,2]
[354053002,1740208246733,-4857.36,0.0001546,2]
[354053004,1740208246743,-2326.9,0.0001546,2]
[354053006,1740208246752,-616.41,0.0001546,2]
[354053008,1740208246762,-2755.29,0.0001546,2]
[354053010,1740208246772,-162.0,0.00015514,2]
[354053012,1740208246782,-1001.63751902,0.00015522,2]
[354053014,1740208246791,-1500.0,0.00015522,2]
[354053016,1740208246801,-1500.0,0.00015522,2]
[354053018,1740208246811,-1500.0,0.00015522,2]
[354053020,1740208246820,-500.0,0.00015522,2]
[354053022,1740208246830,-713.25298366,0.00015539,2]
[354053024,1740208246839,-1338.82,0.00015541,2]
[354053026,1740208246848,-739.71,0.00015541,2]
[354053028,1740208246858,-403.74938167,0.00015541,2]
[354053030,1740208246867,-600.9,0.00015541,2]
[354053032,1740208246877,-1058.86,0.00015541,2]
[354053034,1740208246887,-744.55,0.00015541,2]
[354053036,1740208246896,-697.64,0.00015541,2]
[354053038,1740208246906,-556.77,0.00015541,2]
[354053040,1740208246916,-553.37,0.00015541,2]
[354053042,1740208246926,-4857.36,0.00015542,2]
[354053044,1740208246935,-2326.9,0.00015542,2]
[354053046,1740208246944,-616.41,0.00015542,2]
[354053048,1740208246954,-2755.29,0.00015542,2]
[354053050,1740208246964,-1338.82,0.00015623,2]
[354053052,1740208246973,-739.71,0.00015623,2]
[354053054,1740208246983,-600.9,0.00015623,2]
[354053056,1740208246992,-1058.86,0.00015623,2]
[354053058,1740208247001,-744.55,0.00015623,2]
[354053060,1740208247010,-697.64,0.00015623,2]
[354053062,1740208247019,-556.77,0.00015623,2]
[354053064,1740208247029,-553.37,0.00015623,2]
[354053066,1740208247038,-4857.36,0.00015624,2]
[354053068,1740208247048,-2326.9,0.00015624,2]
[354053070,1740208247057,-616.41,0.00015624,2]
[354053072,1740208247066,-2755.29,0.00015624,2]
[354053074,1740208247076,-713.25298366,0.00015639,2]
[354053076,1740208247085,-1338.82,0.00015706,2]
[354053078,1740208247095,-4857.36,0.00015706,2]
[354053080,1740208247104,-739.71,0.00015706,2]
[354053082,1740208247113,-2326.9,0.00015706,2]
[354053084,1740208247123,-600.9,0.00015706,2]
[354053086,1740208247132,-616.41,0.00015706,2]
[354053088,1740208247141,-1058.86,0.00015706,2]
[354053090,1740208247151,-744.55,0.00015706,2]
[354053092,1740208247160,-697.64,0.00015706,2]
[354053094,1740208247169,-2755.29,0.00015706,2]
[354053096,1740208247178,-556.77,0.00015706,2]
[354053098,1740208247188,-553.37,0.00015706,2]
[354053100,1740208247197,-713.25298366,0.00015739,2]
[354053102,1740208247206,-225.329697,0.00015775,2]
[354053104,1740208247216,-1338.94833684,0.00015788,2]
[354053106,1740208247226,-739.87079161,0.00015788,2]
[354053108,1740208247235,-601.08,0.00015788,2]
[354053110,1740208247244,-1059.09124114,0.00015788,2]
[354053112,1740208247254,-744.59005985,0.00015788,2]
[354053115,1740208247264,-697.73,0.00015788,2]
[354053116,1740208247273,-556.94028475,0.00015788,2]
[354053119,1740208247283,-553.42,0.00015788,2]
[354053121,1740208247292,-4857.5662,0.00015789,2]
[354053123,1740208247302,-2326.9033516,0.00015789,2]
[354053125,1740208247312,-616.61,0.00015789,2]
[354053127,1740208247321,-2755.47509184,0.00015789,2]
[354053129,1740208247330,-151.0,0.000158,2]
[354053131,1740208247340,-713.25298366,0.00015839,2]
[354053133,1740208247349,-337.0,0.0001587,2]
[354053134,1740208247358,-713.25298366,0.00015939,2]
[354053137,1740208247368,-2200.0,0.00015982,2]
[354053139,1740208247377,-150.0,0.00016,2]
[354053140,1740208247386,-1000.0,0.00016,2]
[354053143,1740208247395,-713.25298366,0.00016039,2]
[354053145,1740208247404,-151.0,0.000161,2]
[354053146,1740208247414,-713.25298366,0.00016139,2]
[354053149,1740208247424,-500.0,0.00016154,2]
[354053151,1740208247433,-150.21,0.00016154,2]
[354053153,1740208247442,-559.0,0.00016154,2]
[354053155,1740208247452,-500.0,0.00016154,2]
[354053157,1740208247462,-150.21,0.00016154,2]
[354053159,1740208247471,-150.21,0.00016154,2]
[354053161,1740208247480,-545.3,0.00016164,2]
[354053163,1740208247490,-79537.38616654,0.000162,2]
[354053165,1740208247499,-79537.3861665,0.000162,2]
[354053167,1740208247508,-79537.3861665,0.000162,2]
[354053169,1740208247517,-713.25298366,0.00016239,2]
[354053171,1740208247526,-713.25298366,0.00016339,2]
[354053173,1740208247536,-326.0,0.00016392,2]
[354053175,1740208247545,-326.0,0.00016392,2]
[354053177,1740208247554,-326.0,0.00016392,2]
[354053179,1740208247563,-326.0,0.00016392,2]
[354053181,1740208247572,-326.0,0.00016392,2]
[354053183,1740208247581,-326.0,0.00016392,2]
[354053185,1740208247590,-326.0,0.00016392,2]
[354053187,1740208247599,-326.0,0.00016392,2]
[354053189,1740208247609,-326.0,0.00016392,2]
[354053191,1740208247618,-326.0,0.00016392,2]
[354053193,1740208247628,-326.0,0.00016392,2]
[354053194,1740208247637,-326.0,0.00016392,2]
[354053196,1740208247646,-326.0,0.00016392,2]
[354053198,1740208247655,-326.0,0.00016392,2]
[354053200,1740208247664,-386.0,0.00016393,2]
[354053202,1740208247674,-386.0,0.00016393,2]
[354053205,1740208247683,-386.0,0.00016393,2]
[354053207,1740208247693,-386.0,0.00016393,2]
[354053217,1740208247778,-386.0,0.00016393,2]
[354053219,1740208247790,-386.0,0.00016393,2]
[354053221,1740208247800,-386.0,0.00016393,2]
[354053223,1740208247809,-386.0,0.00016393,2]
[354053225,1740208247820,-386.0,0.00016393,2]
[354053227,1740208247830,-386.0,0.00016393,2]
[354053229,1740208247839,-386.0,0.00016393,2]
[354053231,1740208247849,-386.0,0.00016393,2]
[354053233,1740208247858,-386.0,0.00016393,2]
[354053235,1740208247867,-386.0,0.00016393,2]
[354053237,1740208247876,-326.0,0.00016399,2]
[354053239,1740208247885,-326.0,0.00016399,2]
[354053241,1740208247894,-326.0,0.00016399,2]
[354053243,1740208247904,-326.0,0.00016399,2]
[354053245,1740208247914,-326.0,0.00016399,2]
[354053247,1740208247923,-326.0,0.00016399,2]
[354053249,1740208247932,-326.0,0.00016399,2]
[354053251,1740208247941,-326.0,0.00016399,2]
[354053253,1740208247953,-326.0,0.00016399,2]
[354053255,1740208247962,-326.0,0.00016399,2]
[354053257,1740208247973,-326.0,0.00016399,2]
[354053259,1740208247982,-326.0,0.00016399,2]
[354053261,1740208247992,-326.0,0.00016399,2]
[354053263,1740208248001,-326.0,0.00016399,2]
[354053265,1740208248011,-343.805207,0.000164,6]
[354053267,1740208248021,-386.0,0.000164,2]
[354053270,1740208248031,-386.0,0.000164,2]
[354053271,1740208248040,-386.0,0.000164,2]
[354053274,1740208248050,-386.0,0.000164,2]
[354053276,1740208248060,-386.0,0.000164,2]
[354053277,1740208248070,-386.0,0.000164,2]
[354053280,1740208248079,-386.0,0.000164,2]
[354053281,1740208248088,-386.0,0.000164,2]
[354053283,1740208248098,-386.0,0.000164,2]
[354053285,1740208248107,-386.0,0.000164,2]
[354053287,1740208248117,-386.0,0.000164,2]
[354053289,1740208248126,-386.0,0.000164,2]
[354053291,1740208248135,-386.0,0.000164,2]
[354053293,1740208248144,-386.0,0.000164,2]
[354053295,1740208248154,-326.0,0.00016403,2]
[354053297,1740208248163,-326.0,0.00016403,2]
[354053299,1740208248172,-326.0,0.00016403,2]
[354053301,1740208248182,-326.0,0.00016403,2]
[354053303,1740208248192,-326.0,0.00016403,2]
[354053305,1740208248201,-326.0,0.00016403,2]
[354053307,1740208248211,-326.0,0.00016403,2]
[354053309,1740208248220,-326.0,0.00016403,2]
[354053311,1740208248229,-326.0,0.00016403,2]
[354053314,1740208248239,-326.0,0.00016403,2]
[354053316,1740208248248,-326.0,0.00016403,2]
[354053318,1740208248258,-326.0,0.00016403,2]
[354053320,1740208248267,-326.0,0.00016403,2]
[354053322,1740208248278,-326.0,0.00016403,2]
[354053324,1740208248287,-386.0,0.00016404,2]
[354053326,1740208248296,-386.0,0.00016404,2]
[354053327,1740208248305,-386.0,0.00016404,2]
[354053329,1740208248315,-386.0,0.00016404,2]
[354053331,1740208248324,-386.0,0.00016404,2]
[354053333,1740208248334,-386.0,0.00016404,2]
[354053335,1740208248343,-386.0,0.00016404,2]
[354053337,1740208248355,-386.0,0.00016404,2]
[354053339,1740208248365,-386.0,0.00016404,2]
[354053341,1740208248375,-386.0,0.00016404,2]
[354053343,1740208248384,-386.0,0.00016404,2]
[354053345,1740208248394,-386.0,0.00016404,2]
[354053346,1740208248404,-386.0,0.00016404,2]
[354053347,1740208248413,-386.0,0.00016404,2]
[354053348,1740208248422,-457.67179643,0.00016422,2]
[354053349,1740208248432,-326.0,0.00016424,2]
[354053350,1740208248442,-326.0,0.00016424,2]
[354053351,1740208248451,-326.0,0.00016424,2]
[354053352,1740208248461,-500.0,0.00016428,2]
[354053353,1740208248470,-150.21,0.00016428,2]
[354053354,1740208248480,-559.0,0.00016428,2]
[354053355,1740208248489,-500.0,0.00016428,2]
[354053356,1740208248499,-150.21,0.00016428,2]
[354053357,1740208248509,-787.26,0.00016438,2]
[354053358,1740208248518,-787.26,0.00016438,2]
[354053359,1740208248528,-787.26,0.00016438,2]
[354053360,1740208248539,-787.26,0.00016438,2]
[354053361,1740208248549,-787.26,0.00016438,2]
[354053362,1740208248559,-787.26,0.00016438,2]
[354053363,1740208248570,-787.26,0.00016438,2]
[354053364,1740208248582,-787.26,0.00016438,2]
[354053365,1740208248592,-787.26,0.00016438,2]
[354053366,1740208248601,-787.26,0.00016438,2]
[354053367,1740208248611,-787.26,0.00016438,2]
[354053368,1740208248620,-787.26,0.00016438,2]
[354053370,1740208248630,-787.26,0.00016438,2]
[354053372,1740208248639,-787.26,0.00016438,2]
[354053374,1740208248649,-787.26,0.00016438,2]
[354053376,1740208248658,-787.26,0.00016438,2]
[354053378,1740208248667,-787.26,0.00016438,2]
[354053380,1740208248677,-787.26,0.00016438,2]
[354053381,1740208248688,-787.26,0.00016438,2]
[354053382,1740208248697,-787.26,0.00016438,2]
[354053383,1740208248706,-787.26,0.00016438,2]
[354053384,1740208248716,-787.26,0.00016438,2]
[354053385,1740208248727,-787.26,0.00016438,2]
[354053386,1740208248740,-787.42220587,0.00016438,2]
[354053387,1740208248750,-344.73,0.00016438,2]
[354053388,1740208248759,-344.73,0.00016438,2]
[354053389,1740208248769,-344.73,0.00016438,2]
[354053390,1740208248778,-344.73,0.00016438,2]
[354053391,1740208248787,-344.73,0.00016438,2]
[354053392,1740208248797,-344.73,0.00016438,2]
[354053393,1740208248806,-344.73,0.00016438,2]
[354053394,1740208248815,-344.73,0.00016438,2]
[354053395,1740208248826,-344.73,0.00016438,2]
[354053396,1740208248835,-344.73,0.00016438,2]
[354053397,1740208248844,-344.73,0.00016438,2]
[354053398,1740208248853,-344.73,0.00016438,2]
[354053399,1740208248863,-344.73,0.00016438,2]
[354053400,1740208248872,-344.73,0.00016438,2]
[354053401,1740208248882,-344.73,0.00016438,2]
[354053402,1740208248892,-344.73,0.00016438,2]
[354053403,1740208248901,-344.73,0.00016438,2]
[354053404,1740208248911,-344.73,0.00016438,2]
[354053405,1740208248920,-344.73,0.00016438,2]
[354053406,1740208248930,-344.73,0.00016438,2]
[354053407,1740208248939,-344.73,0.00016438,2]
[354053408,1740208248949,-344.73,0.00016438,2]
[354053409,1740208248958,-344.73,0.00016438,2]
[354053410,1740208248967,-344.86591958,0.00016438,2]
[354053411,1740208248979,-500.0,0.00016438,2]
[354053412,1740208248988,-500.0,0.00016438,2]
[354053413,1740208248997,-500.0,0.00016438,2]
[354053414,1740208249007,-500.0,0.00016438,2]
[354053415,1740208249016,-500.0,0.00016438,2]
[354053416,1740208249025,-500.0,0.00016438,2]
[354053417,1740208249034,-500.0,0.00016438,2]
[354053418,1740208249043,-500.0,0.00016438,2]
[354053419,1740208249053,-500.0,0.00016438,2]
[354053420,1740208249062,-500.0,0.00016438,2]
[354053421,1740208249071,-500.0,0.00016438,2]
[354053422,1740208249091,-500.0,0.00016438,2]
[354053423,1740208249102,-500.0,0.00016438,2]
[354053424,1740208249113,-500.0,0.00016438,2]
[354053425,1740208249122,-500.0,0.00016438,2]
[354053426,1740208249133,-500.0,0.00016438,2]
[354053427,1740208249142,-500.0,0.00016438,2]
[354053428,1740208249152,-500.0,0.00016438,2]
[354053429,1740208249161,-500.0,0.00016438,2]
[354053430,1740208249173,-597.52280878,0.00016438,2]
[354053431,1740208249182,-477.63547931,0.00016438,2]
[354053432,1740208249191,-1164.76,0.00016438,2]
[354053433,1740208249200,-1164.76,0.00016438,2]
[354053434,1740208249214,-1164.76,0.00016438,2]
[354053435,1740208249223,-1164.76,0.00016438,2]
[354053436,1740208249233,-1164.76,0.00016438,2]
[354053437,1740208249243,-1164.76,0.00016438,2]
[354053438,1740208249252,-1164.76,0.00016438,2]
[354053439,1740208249262,-1164.76,0.00016438,2]
[354053440,1740208249272,-1164.76,0.00016438,2]
[354053441,1740208249281,-1164.76,0.00016438,2]
[354053442,1740208249290,-1164.76,0.00016438,2]
[354053443,1740208249299,-1164.76,0.00016438,2]
[354053444,1740208249308,-1164.76,0.00016438,2]
[354053445,1740208249386,-1164.76,0.00016438,2]
[354053446,1740208249396,-1164.76,0.00016438,2]
[354053447,1740208249407,-1164.76,0.00016438,2]
[354053448,1740208249417,-1164.76,0.00016438,2]
[354053449,1740208249426,-1164.76,0.00016438,2]
[354053450,1740208249436,-1164.76,0.00016438,2]
[354053451,1740208249448,-1164.76,0.00016438,2]
[354053452,1740208249458,-1164.76,0.00016438,2]
[354053453,1740208249468,-1164.76,0.00016438,2]
[354053454,1740208249478,-1164.76,0.00016438,2]
[354053455,1740208249489,-1164.96871288,0.00016438,2]
[354053456,1740208249499,-500.0,0.00016438,2]
[354053457,1740208249509,-500.0,0.00016438,2]
[354053458,1740208249519,-500.0,0.00016438,2]
[354053459,1740208249529,-467.677778,0.00016438,2]
[354053460,1740208249539,-467.677778,0.00016438,2]
[354053461,1740208249549,-467.677778,0.00016438,2]
[354053462,1740208249559,-467.677778,0.00016438,2]
[354053463,1740208249569,-467.677778,0.00016438,2]
[354053464,1740208249578,-467.677778,0.00016438,2]
[354053465,1740208249588,-713.25298366,0.00016439,2]
[354053466,1740208249597,-150.0,0.00016473,2]
[354053467,1740208249607,-151.0,0.000165,2]
[354053468,1740208249616,-31364.94,0.000165,2]
[354053469,1740208249626,-28283.62,0.000165,2]
[354053470,1740208249635,-151.0,0.000165,2]
[354053471,1740208249644,-713.25298366,0.00016539,2]
[354053472,1740208249654,-713.25298366,0.00016639,2]
[354053473,1740208249663,-600.0,0.00016702,2]
[354053474,1740208249673,-150.21,0.00016702,2]
[354053475,1740208249683,-559.0,0.00016702,2]
[354053476,1740208249692,-500.0,0.00016702,2]
[354053477,1740208249702,-150.21,0.00016702,2]
[354053478,1740208249711,-1117.12521209,0.0001672,2]
[354053479,1740208249720,-713.25298366,0.00016739,2]
[354053480,1740208249729,-2000.0,0.0001682,2]
[354053481,1740208249741,-542.16361079,0.0001682,2]
[354053482,1740208249751,-1757.75764796,0.0001682,2]
[354053483,1740208249760,-79537.3861665,0.00016825,2]
[354053484,1740208249769,-713.25298366,0.00016839,2]
[354053485,1740208249779,-467.677778,0.00016875,2]
[354053486,1740208249789,-467.677778,0.00016875,2]
[354053487,1740208249798,-151.0,0.000169,2]
[354053488,1740208249807,-713.25298366,0.00016939,2]
[354053489,1740208249817,-153.42823954,0.00016976,2]
[354053490,1740208249826,-559.0,0.00016976,2]
[354053491,1740208249835,-500.0,0.00016976,2]
[354053492,1740208249845,-150.21,0.00016976,2]
[354053493,1740208249854,-1000.0,0.00017,2]
[354053494,1740208249863,-343.0,0.0001702,2]
[354053495,1740208249873,-250.0,0.00017021,2]
[354053496,1740208249881,-713.25298366,0.00017039,2]
[354053497,1740208249891,-355.293833,0.00017041,2]
[354053498,1740208249900,-355.293833,0.00017041,2]
[354053499,1740208249910,-355.293833,0.00017041,2]
[354053500,1740208249918,-355.293833,0.00017041,2]
[354053501,1740208249928,-354.3704594,0.00017041,2]
[354053502,1740208249937,-713.8462809,0.00017041,2]
[354053503,1740208249947,-713.25298366,0.00017139,2]
[354053504,1740208249956,-557.2941539,0.00017178,2]
[354053505,1740208249965,-557.2941539,0.00017178,2]
[354053506,1740208249974,-557.2941539,0.00017178,2]
[354053507,1740208249983,-557.2941539,0.00017178,2]
[354053508,1740208249992,-154.7242114,0.00017178,2]
[354053509,1740208250001,-557.2941539,0.00017178,2]
[354053510,1740208250011,-1078.5327008,0.00017178,2]
[354053511,1740208250019,-713.25298366,0.00017239,2]
[354053512,1740208250029,-559.0,0.0001725,2]
[354053513,1740208250039,-500.0,0.0001725,2]
[354053514,1740208250048,-150.21,0.0001725,2]
[354053515,1740208250057,-151.0,0.000173,2]
[354053516,1740208250066,-713.25298366,0.00017339,2]
[354053517,1740208250075,-443.0668422,0.00017346,2]
[354053518,1740208250085,-150.0,0.00017414,4]
[354053519,1740208250094,-713.25298366,0.00017439,2]
[354053520,1740208250103,-199.8634826,0.00017452,2]
[354053521,1740208250113,-153.0,0.00017452,2]
[354053522,1740208250125,-153.0,0.00017452,2]
[354053523,1740208250135,-153.0,0.00017452,2]
[354053524,1740208250144,-153.0,0.00017452,2]
[354053525,1740208250154,-153.0,0.00017452,2]
[354053526,1740208250163,-559.0,0.00017524,2]
[354053527,1740208250172,-500.0,0.00017524,2]
[354053528,1740208250181,-197.86480124,0.00017524,2]
[354053529,1740208250191,-545.3,0.00017534,4]
[354053530,1740208250200,-713.25298366,0.00017539,2]
[354053531,1740208250209,-453.76600351,0.00017568,2]
[354053532,1740208250218,-22627.40192453,0.00017586,2]
[354053533,1740208250227,-151.0,0.000176,2]
[354053534,1740208250235,-713.25298366,0.00017639,2]
[354053535,1740208250245,-2000.0,0.000177,2]
[354053536,1740208250254,-396.0,0.00017722,2]
[354053537,1740208250263,-1970.0,0.0001773,2]
[354053538,1740208250271,-538.0,0.0001773,2]
[354053539,1740208250280,-2288.0,0.0001773,2]
[354053540,1740208250289,-2021.91,0.00017732,2]
[354053541,1740208250299,-713.25298366,0.00017739,2]
[354053542,1740208250308,-8273.28095169,0.00017788,2]
[354053543,1740208250318,-559.0,0.00017798,2]
[354053544,1740208250327,-500.0,0.00017798,2]
[354053545,1740208250336,-713.25298366,0.00017839,2]
[354053546,1740208250345,-162.945082,0.00017875,2]
[354053547,1740208250354,-50000.0,0.000179,4]
[354053548,1740208250364,-50000.0,0.000179,7]
[354053549,1740208250375,-50000.0,0.000179,6]
[354053550,1740208250386,-42502.95173723,0.000179,5]
[354053551,1740208250396,-467.677778,0.000179,2]
[354053552,1740208250407,-467.677778,0.000179,2]
[354053553,1740208250416,-162.566755,0.000179,4]
[354053554,1740208250426,-79537.3861665,0.000179,2]
[354053555,1740208250438,-1008.15882379,0.00017932,2]
[354053556,1740208250447,-713.25298366,0.00017939,2]
[354053557,1740208250457,-21110.03059479,0.00018,5]
[354053558,1740208250467,-5194.83405994,0.00018,5]
[354053559,1740208250478,-741856.57755855,0.00018,15]
[354053560,1740208250548,-448.76583182,0.00018,15]
[354053561,1740208250593,-5540.03766733,0.00018,15]
[354053562,1740208250605,-1741442.09739567,0.00018,15]
[354053563,1740208250616,-400.0,0.00018,15]
[354053564,1740208250627,-1191.90761232,0.00018,15]
[354053565,1740208250689,-500.0,0.00013898,2]
[354053566,1740208250699,-8858.4325014,0.000179,7]
[354053567,1740208250711,-4066.46424294,0.000179,7]
[354053568,1740208250784,-934.45293278,0.00018,15]
[354053569,1740208250858,-17275.93386906,0.00018,15]
[354053570,1740208250872,-11691.7548638,0.00018,15]
[354053571,1740208431862,1000.0,0.00019,120]
[354053572,1740208432779,1000.0,0.00019,120]
[354053574,1740208534390,215.461141,9.041e-05,2]
[354053581,1740209318583,-150.0,0.0001,2]
[354053583,1740209320728,-150.0,0.0001,2]
[354053584,1740209322226,-150.0,0.0001,2]
[354053586,1740209324338,-150.0,0.0001,2]
[354053587,1740209326431,-69.04830123,0.0001,2]
[354053624,1740209431902,-300.0,0.00012986,2]
[354053625,1740209431912,-6822.43655191,0.00012987,2]
[354053626,1740209431994,-2400.69903737,0.00012987,2]
[354053631,1740209437630,-3091.30390272,0.00012987,2]
[354053632,1740209437640,-159.60608658,0.00013598,2]
[354053633,1740209437650,-327.287635,0.00013699,2]
[354053634,1740209437659,-177.24406904,0.00013797,2]
[354053635,1740209437670,-641.64,0.00013896,2]
[354053636,1740209437679,-505.31007187,0.00013896,2]
[354053637,1740209437689,-501.24530807,0.00013896,2]
[354053638,1740209437698,-500.0,0.00013897,2]
[354053639,1740209437707,-500.0,0.00013897,2]
[354053640,1740209437717,-500.0,0.00013897,2]
[354053641,1740209437726,-500.0,0.00013897,2]
[354053642,1740209437735,-49.40909439,0.00013897,2]
[354053643,1740209437747,-450.59090561,0.00013897,2]
[354053644,1740209437757,-500.0,0.00013897,2]
[354053645,1740209437766,-500.0,0.00013897,2]
[354053646,1740209437775,-500.0,0.00013897,2]
[354053647,1740209437784,-500.0,0.00013897,2]
[354053648,1740209437793,-500.0,0.00013897,2]
[354053649,1740209437803,-500.0,0.00013897,2]
[354053650,1740209437812,-514.17489971,0.00013897,2]
[354053651,1740209437822,-500.0,0.00013897,2]
[354053652,1740209437831,-500.0,0.00013897,2]
[354053653,1740209437841,-501.99302645,0.00013897,2]
[354053654,1740209437850,-500.0,0.00013897,2]
[354053655,1740209437859,-500.0,0.00013897,2]
[354053656,1740209437868,-503.974414,0.00013897,2]
[354053657,1740209437877,-500.0,0.00013897,2]
[354053658,1740209437886,-500.0,0.00013897,2]
[354053659,1740209437895,-522.99923285,0.00013897,2]
[354053660,1740209437905,-500.0,0.00013897,2]
[354053661,1740209437915,-505.00621799,0.00013897,2]
[354053662,1740209437924,-500.0,0.00013897,2]
[354053663,1740209437933,-500.0,0.00013897,2]
[354053664,1740209437943,-500.0,0.00013897,2]
[354053665,1740209437952,-500.0,0.00013897,2]
[354053666,1740209437962,-504.72049721,0.00013897,2]
[354053667,1740209437971,-505.18074205,0.00013897,2]
[354053668,1740209437979,-500.0,0.00013897,2]
[354053669,1740209437988,-501.37434676,0.00013897,2]
[354053670,1740209437997,-500.0,0.00013897,2]
[354053671,1740209438006,-502.63515538,0.00013897,2]
[354053672,1740209438015,-500.0,0.00013897,2]
[354053673,1740209438024,-500.0,0.00013897,2]
[354053674,1740209438034,-500.0,0.00013897,2]
[354053675,1740209438043,-500.0,0.00013897,2]
[354053676,1740209438052,-500.0,0.00013897,2]
[354053677,1740209438061,-500.0,0.00013897,2]
[354053678,1740209438070,-500.0,0.00013897,2]
[354053679,1740209438080,-500.0,0.00013897,2]
[354053680,1740209438089,-500.0,0.00013897,2]
[354053681,1740209438098,-500.0,0.00013897,2]
[354053682,1740209438107,-500.0,0.00013897,2]
[354053683,1740209438116,-626.72267439,0.00013897,2]
[354053684,1740209438125,-500.0,0.00013897,2]
[354053685,1740209438134,-159.86056434,0.00013897,2]
[354053686,1740209438146,-500.0,0.00013897,2]
[354053687,1740209438155,-500.0,0.00013897,2]
[354053688,1740209438166,-500.0,0.00013897,2]
[354053689,1740209438175,-500.0,0.00013897,2]
[354053690,1740209438185,-500.0,0.00013897,2]
[354053691,1740209438194,-503.0886522,0.00013897,2]
[354053692,1740209438203,-500.0,0.00013898,2]
[354053693,1740209438213,-582.48721623,0.00013898,2]
[354053694,1740209438224,-500.0,0.00013898,2]
[354053695,1740209438233,-500.0,0.00013898,2]
[354053696,1740209438242,-501.62289646,0.00013898,2]
[354053697,1740209438252,-502.24358201,0.00013898,2]
[354053698,1740209438261,-500.81859712,0.00013898,2]
[354053699,1740209438270,-500.0,0.00013898,2]
[354053700,1740209438279,-501.5745025,0.00013898,2]
[354053701,1740209438288,-456.12076908,0.00013898,2]